fUSD/lending_fUSD_20250505
["ID","MTS","AMOUNT","RATE_DAILY","PERIOD"]
[359944332,1746443199820,-450.0,0.00019996,2]
[359944333,1746443199848,-450.0,0.00019996,2]
[359944334,1746443199875,-450.0,0.00019996,2]
[359944335,1746443199907,-450.0,0.00019996,2]
[359944336,1746443199938,-450.0,0.00019996,2]
[359944337,1746443199966,-450.0,0.00019996,2]
[359944338,1746443199993,-450.0,0.00019996,2]
[359944339,1746443200023,-450.0,0.00019996,2]
[359944340,1746443200050,-450.0,0.00019996,2]
[359944341,1746443200083,-450.0,0.00019996,2]
[359944342,1746443200111,-450.0,0.00019996,2]
[359944343,1746443200140,-450.0,0.00019996,2]
[359944344,1746443200166,-450.0,0.00019996,2]
[359944345,1746443200193,-157.41068815,0.00019996,2]
[359944346,1746443200223,-450.0,0.00019996,2]
[359944347,1746443200257,-450.0,0.00019996,2]
[359944348,1746443200287,-450.0,0.00019996,2]
[359944349,1746443200316,-450.0,0.00019996,2]
[359944350,1746443200345,-450.0,0.00019996,2]
[359944351,1746443200372,-474.97665069,0.00019996,2]
[359944352,1746443200404,-450.0,0.00019996,2]
[359944353,1746443200432,-450.0,0.00019996,2]
[359944354,1746443200462,-1954.510572,0.00019996,2]
[359944355,1746443200490,-450.0,0.00019996,2]
[359944356,1746443200517,-450.0,0.00019996,2]
[359944357,1746443200545,-470.50256753,0.00019996,2]
[359944358,1746443200573,-771.36,0.00019996,2]
[359944359,1746443200600,-450.0,0.00019996,2]
[359944360,1746443200628,-450.0,0.00019996,2]
[359944361,1746443200656,-472.74151213,0.00019996,2]
[359944362,1746443200683,-450.0,0.00019996,2]
[359944363,1746443200710,-450.0,0.00019996,2]
[359944364,1746443200738,-46307.252617,0.00019996,2]
[359944365,1746443200766,-450.0,0.00019996,2]
[359944366,1746443200795,-450.0,0.00019996,2]
[359944367,1746443200825,-450.0,0.00019996,2]
[359944368,1746443201048,-489.62464043,0.00019996,2]
[359944369,1746443201081,-374.146941,0.00019996,2]
[359944370,1746443201113,-465.67882228,0.00019996,2]
[359944371,1746443201142,-450.0,0.00019996,2]
[359944372,1746443201169,-450.0,0.00019996,2]
[359944373,1746443201196,-450.0,0.00019996,2]
[359944374,1746443201224,-450.0,0.00019996,2]
[359944375,1746443201254,-450.0,0.00019997,2]
[359944376,1746443201284,-6025.34143558,0.00019997,2]
[359944377,1746443201312,-1000.0,0.00019998,2]
[359944378,1746443201342,-150.0,0.00019998,2]
[359944379,1746443201371,-222.40857925,0.00019998,2]
[359944380,1746443201399,-150.0,0.00019998,2]
[359944381,1746443201428,-450.0,0.00019998,2]
[359944382,1746443201457,-450.0,0.00019998,2]
[359944383,1746443201484,-450.0,0.00019998,2]
[359944384,1746443201511,-450.0,0.00019998,2]
[359944385,1746443201540,-500.0,0.00019998,2]
[359944386,1746443201567,-450.0,0.00019998,2]
[359944387,1746443201595,-450.0,0.00019998,2]
[359944388,1746443201622,-450.0,0.00019998,2]
[359944389,1746443201653,-450.0,0.00019998,2]
[359944390,1746443201683,-983.4,0.00019998,2]
[359944391,1746443201711,-450.0,0.00019998,2]
[359944392,1746443201739,-1405.92,0.00019998,2]
[359944393,1746443201768,-7265.2,0.00019998,2]
[359944394,1746443201797,-450.0,0.00019998,2]
[359944395,1746443201824,-515.19,0.00019998,2]
[359944396,1746443201852,-3761.91,0.00019998,2]
[359944397,1746443201881,-374.146941,0.00019998,2]
[359944398,1746443201909,-450.0,0.00019999,2]
[359944399,1746443201937,-450.0,0.00019999,2]
[359944400,1746443201966,-450.0,0.00019999,2]
[359944401,1746443201994,-450.0,0.00019999,2]
[359944402,1746443202022,-450.0,0.00019999,2]
[359944403,1746443202051,-450.0,0.00019999,2]
[359944404,1746443202079,-450.0,0.00019999,2]
[359944405,1746443202106,-450.0,0.00019999,2]
[359944406,1746443202133,-460.68,0.00019999,2]
[359944407,1746443202160,-500.0,0.00019999,2]
[359944408,1746443202188,-450.0,0.00019999,2]
[359944409,1746443202216,-450.0,0.00019999,2]
[359944410,1746443202244,-196.44,0.00019999,2]
[359944411,1746443202275,-450.0,0.00019999,2]
[359944412,1746443202304,-450.0,0.00019999,2]
[359944413,1746443202333,-450.0,0.00019999,2]
[359944414,1746443202363,-386.07,0.00019999,2]
[359944415,1746443202390,-450.0,0.00019999,2]
[359944416,1746443202419,-450.0,0.00019999,2]
[359944417,1746443202446,-450.0,0.00019999,2]
[359944418,1746443202474,-450.0,0.00019999,2]
[359944419,1746443202501,-450.0,0.00019999,2]
[359944420,1746443202529,-278.43,0.00019999,2]
[359944421,1746443202556,-450.0,0.00019999,2]
[359944422,1746443202583,-450.0,0.00019999,2]
[359944423,1746443202611,-983.4,0.00019999,2]
[359944424,1746443202638,-983.4,0.00019999,2]
[359944425,1746443202665,-983.4,0.00019999,2]
[359944426,1746443202693,-983.4,0.00019999,2]
[359944427,1746443202722,-983.4,0.00019999,2]
[359944428,1746443202750,-983.4,0.00019999,2]
[359944429,1746443202779,-983.4,0.00019999,2]
[359944430,1746443202808,-983.4,0.00019999,2]
[359944431,1746443202836,-983.4,0.00019999,2]
[359944432,1746443202865,-983.4,0.00019999,2]
[359944433,1746443202895,-983.4,0.00019999,2]
[359944434,1746443202924,-983.4,0.00019999,2]
[359944435,1746443202955,-983.4,0.00019999,2]
[359944436,1746443202984,-983.4,0.00019999,2]
[359944437,1746443203013,-983.4,0.00019999,2]
[359944438,1746443203043,-983.4,0.00019999,2]
[359944439,1746443203072,-983.4,0.00019999,2]
[359944440,1746443203102,-983.4,0.00019999,2]
[359944441,1746443203132,-983.4,0.00019999,2]
[359944442,1746443203159,-983.4,0.00019999,2]
[359944443,1746443203188,-983.4,0.00019999,2]
[359944444,1746443203216,-983.4,0.00019999,2]
[359944445,1746443203244,-983.52000004,0.00019999,2]
[359944446,1746443203275,-450.0,0.00019999,2]
[359944447,1746443203302,-450.0,0.00019999,2]
[359944448,1746443203330,-450.0,0.00019999,2]
[359944449,1746443203354,-450.0,0.00019999,2]
[359944450,1746443203364,-450.0,0.00019999,2]
[359944451,1746443203373,-450.0,0.00019999,2]
[359944452,1746443203383,-328.31715218,0.00019999,2]
[359944453,1746443203394,-85.17381825,0.00019999,2]
[359944454,1746443203404,-288.97312275,0.00019999,2]
[359944455,1746443203415,-161.02687725,0.00019999,2]
[359944456,1746443203424,-213.12006375,0.00019999,2]
[359944457,1746443203436,-236.87993625,0.00019999,2]
[359944458,1746443203446,-393.13486375,0.00019999,2]
[359944459,1746443203458,-56.86513625,0.00019999,2]
[359944460,1746443203467,-450.0,0.00019999,2]
[359944461,1746443203477,-450.0,0.00019999,2]
[359944462,1746443203486,-43.13486375,0.00019999,2]
[359944463,1746443203499,-406.86513625,0.00019999,2]
[359944464,1746443203509,-89.49450222,0.00019999,2]
[359944465,1746443203521,-360.50549778,0.00019999,2]
[359944466,1746443203532,-450.0,0.00019999,2]
[359944467,1746443203542,-211.0296837,0.00019999,2]
[359944468,1746443203553,-200.0,0.00019999,2]
[359944469,1746443203564,-38.9703163,0.00019999,2]
[359944470,1746443203573,-334.41,0.00019999,2]
[359944471,1746443203583,-450.0,0.00019999,2]
[359944472,1746443203593,-450.0,0.00019999,2]
[359944473,1746443203603,-450.0,0.00019999,2]
[359944474,1746443203612,-450.0,0.00019999,2]
[359944475,1746443203622,-528.55,0.00019999,2]
[359944476,1746443203631,-504.0696837,0.00019999,2]
[359944477,1746443203643,-901.8503163,0.00019999,2]
[359944478,1746443203652,-269.1496837,0.00019999,2]
[359944479,1746443203663,-167.63522545,0.00019999,2]
[359944480,1746443203674,-74.98895916,0.00019999,2]
[359944481,1746443203683,-425.01104084,0.00019999,2]
[359944482,1746443203695,-200.0,0.00019999,2]
[359944483,1746443203707,-374.146941,0.00019999,2]
[359944484,1746443203718,-374.146941,0.00019999,2]
[359944485,1746443203730,-32.61507716,0.00019999,2]
[359944486,1746443203740,-467.38492284,0.00019999,2]
[359944487,1746443203752,-300.0,0.00019999,2]
[359944488,1746443203764,-500.0,0.00019999,2]
[359944489,1746443203776,-138.53507716,0.00019999,2]
[359944490,1746443203786,-544.69275398,0.00019999,2]
[359944491,1746443203799,-300.0,0.00019999,2]
[359944492,1746443203811,-561.22724602,0.00019999,2]
[359944493,1746443203822,-288.77275398,0.00019999,2]
[359944494,1746443203834,-300.0,0.00019999,2]
[359944495,1746443203846,-500.0,0.00019999,2]
[359944496,1746443203857,-317.14724602,0.00019999,2]
[359944497,1746443203867,-134.26140193,0.00019999,2]
[359944498,1746443203889,-450.0,0.00019994,2]
[359944499,1746443203899,-1.36733697,0.00019999,2]
[359944500,1746443203923,-157.3280889,0.00019799,2]
[359944501,1746443203932,-292.6719111,0.00019999,2]
[359944502,1746443203944,-450.0,0.00019999,2]
[359944503,1746443204077,-527.61935,0.00019999,2]
[359944504,1746443204090,-1169.85561428,0.00019999,2]
[359944505,1746443204107,-236.06438572,0.00019999,2]
[359944506,1746443204116,-1405.92,0.00019999,2]
[359944507,1746443204125,-55.49057856,0.00019999,2]
[359944508,1746443204136,-1350.42942144,0.00019999,2]
[359944509,1746443204146,-347.04554284,0.00019999,2]
[359944510,1746443204157,-1058.87445716,0.00019999,2]
[359944511,1746443204166,-638.60050712,0.00019999,2]
[359944512,1746443204183,-450.0,0.00019995,2]
[359944513,1746443204193,-767.31949288,0.00019999,2]
[359944514,1746443204202,-480.1554714,0.00019999,2]
[359944515,1746443204214,-925.7645286,0.00019999,2]
[359944516,1746443204223,-771.71043568,0.00019999,2]
[359944517,1746443204257,-634.20956432,0.00019999,2]
[359944518,1746443204284,-1405.92,0.00019999,2]
[359944519,1746443204312,-1405.92,0.00019999,2]
[359944520,1746443204343,-1405.92,0.00019999,2]
[359944521,1746443204372,-889.21,0.00019999,2]
[359944522,1746443204399,-450.0,0.00019999,2]
[359944523,1746443204430,-1405.92,0.00019999,2]
[359944524,1746443204459,-889.21,0.00019999,2]
[359944525,1746443204487,-1405.92,0.00019999,2]
[359944526,1746443204516,-889.21,0.00019999,2]
[359944527,1746443204545,-1405.92,0.00019999,2]
[359944528,1746443204575,-889.21,0.00019999,2]
[359944529,1746443204603,-1405.92,0.00019999,2]
[359944530,1746443204633,-889.21,0.00019999,2]
[359944531,1746443204660,-450.0,0.00019999,2]
[359944532,1746443204688,-1405.92,0.00019999,2]
[359944533,1746443204718,-889.21,0.00019999,2]
[359944534,1746443204746,-450.0,0.00019999,2]
[359944535,1746443204775,-1405.92,0.00019999,2]
[359944536,1746443204805,-889.21,0.00019999,2]
[359944537,1746443204831,-450.0,0.00019999,2]
[359944538,1746443204860,-1406.09,0.00019999,2]
[359944539,1746443204890,-889.21,0.00019999,2]
[359944540,1746443204918,-450.0,0.00019999,2]
[359944541,1746443204947,-889.21,0.00019999,2]
[359944542,1746443204974,-413.66974328,0.00019999,2]
[359944543,1746443205003,-889.21,0.00019999,2]
[359944544,1746443205034,-889.21,0.00019999,2]
[359944545,1746443205065,-889.21,0.00019999,2]
[359944546,1746443205095,-889.21,0.00019999,2]
[359944547,1746443205125,-450.0,0.00019999,2]
[359944548,1746443205155,-889.21,0.00019999,2]
[359944549,1746443205184,-450.0,0.00019999,2]
[359944550,1746443205214,-889.21,0.00019999,2]
[359944551,1746443205244,-7265.2,0.00019999,2]
[359944552,1746443205277,-450.0,0.00019999,2]
[359944553,1746443205308,-450.0,0.00019999,2]
[359944554,1746443205340,-889.21,0.00019999,2]
[359944555,1746443205369,-7265.2,0.00019999,2]
[359944556,1746443205397,-450.0,0.00019999,2]
[359944557,1746443205426,-7265.2,0.00019999,2]
[359944558,1746443205457,-889.21,0.00019999,2]
[359944559,1746443205487,-450.0,0.00019999,2]
[359944560,1746443205516,-7265.2,0.00019999,2]
[359944561,1746443205547,-291.66,0.00019999,2]
[359944562,1746443205577,-889.21,0.00019999,2]
[359944563,1746443205608,-450.0,0.00019999,2]
[359944564,1746443205638,-889.21,0.00019999,2]
[359944565,1746443205665,-450.0,0.00019999,2]
[359944566,1746443205696,-889.21,0.00019999,2]
[359944567,1746443205727,-450.0,0.00019999,2]
[359944568,1746443205757,-889.21,0.00019999,2]
[359944569,1746443205787,-450.0,0.00019999,2]
[359944570,1746443205817,-889.25,0.00019999,2]
[359944571,1746443205845,-450.0,0.00019999,2]
[359944572,1746443205873,-450.0,0.00019999,2]
[359944573,1746443205901,-450.0,0.00019999,2]
[359944574,1746443205930,-450.0,0.00019999,2]
[359944575,1746443205959,-450.0,0.00019999,2]
[359944576,1746443205987,-450.0,0.00019999,2]
[359944577,1746443206014,-450.0,0.00019999,2]
[359944578,1746443206041,-450.0,0.00019999,2]
[359944579,1746443206071,-450.0,0.00019999,2]
[359944580,1746443206098,-450.0,0.00019999,2]
[359944581,1746443206125,-450.0,0.00019999,2]
[359944582,1746443206151,-450.0,0.00019999,2]
[359944583,1746443206180,-450.0,0.00019999,2]
[359944584,1746443206209,-450.0,0.00019999,2]
[359944585,1746443206239,-450.0,0.00019999,2]
[359944586,1746443206271,-450.0,0.00019999,2]
[359944587,1746443206302,-450.0,0.00019999,2]
[359944588,1746443206332,-233.78200781,0.00019999,2]
[359944589,1746443206361,-450.0,0.00019999,2]
[359944590,1746443206389,-450.0,0.00019999,2]
[359944591,1746443206419,-450.0,0.00019999,2]
[359944592,1746443206451,-450.0,0.00019999,2]
[359944593,1746443206480,-450.0,0.00019999,2]
[359944594,1746443206511,-771.36,0.00019999,2]
[359944595,1746443206544,-771.36,0.00019999,2]
[359944596,1746443206573,-771.36,0.00019999,2]
[359944597,1746443206601,-7265.2,0.00019999,2]
[359944598,1746443206630,-771.36,0.00019999,2]
[359944599,1746443206656,-7265.2,0.00019999,2]
[359944600,1746443206684,-771.36,0.00019999,2]
[359944601,1746443206711,-450.0,0.00019999,2]
[359944602,1746443206738,-7265.2,0.00019999,2]
[359944603,1746443206767,-771.36,0.00019999,2]
[359944604,1746443206796,-7265.2,0.00019999,2]
[359944605,1746443206824,-771.36,0.00019999,2]
[359944606,1746443206854,-450.0,0.00019999,2]
[359944607,1746443206882,-7265.2,0.00019999,2]
[359944608,1746443206910,-771.36,0.00019999,2]
[359944609,1746443207057,-450.0,0.00019999,2]
[359944610,1746443207092,-7265.2,0.00019999,2]
[359944611,1746443207124,-771.36,0.00019999,2]
[359944612,1746443207155,-450.0,0.00019999,2]
[359944613,1746443207187,-7265.2,0.00019999,2]
[359944614,1746443207219,-771.36,0.00019999,2]
[359944615,1746443207253,-450.0,0.00019999,2]
[359944616,1746443207283,-7265.2,0.00019999,2]
[359944617,1746443207312,-450.0,0.00019999,2]
[359944618,1746443207343,-771.36,0.00019999,2]
[359944619,1746443207372,-7265.2,0.00019999,2]
[359944620,1746443207402,-771.36,0.00019999,2]
[359944621,1746443207433,-7265.2,0.00019999,2]
[359944622,1746443207463,-450.0,0.00019999,2]
[359944623,1746443207496,-771.36,0.00019999,2]
[359944624,1746443207527,-450.0,0.00019999,2]
[359944625,1746443207558,-771.36,0.00019999,2]
[359944626,1746443207586,-210.97125667,0.00019999,2]
[359944627,1746443207617,-7265.2,0.00019999,2]
[359944628,1746443207647,-450.0,0.00019999,2]
[359944629,1746443207678,-771.36,0.00019999,2]
[359944630,1746443207709,-450.0,0.00019999,2]
[359944631,1746443207740,-7265.2,0.00019999,2]
[359944632,1746443207770,-771.36,0.00019999,2]
[359944633,1746443207800,-450.0,0.00019999,2]
[359944634,1746443207832,-7265.2,0.00019999,2]
[359944635,1746443207864,-771.36,0.00019999,2]
[359944636,1746443208035,-1697.47496428,0.00019999,2]
[359944637,1746443208047,-1697.47496428,0.00019999,2]
[359944638,1746443208106,-1697.47496428,0.00019999,2]
[359944639,1746443208118,-1697.47496428,0.00019999,2]
[359944640,1746443208135,-475.30014288,0.00019999,2]
[359944641,1746443208145,-450.0,0.00019999,2]
[359944642,1746443208157,-771.36,0.00019999,2]
[359944643,1746443208167,-0.8148214,0.00019999,2]
[359944644,1746443208179,-1697.47496428,0.00019999,2]
[359944645,1746443208200,-1697.47496428,0.00019999,2]
[359944646,1746443208213,-1697.47496428,0.00019999,2]
[359944647,1746443208225,-1697.47496428,0.00019999,2]
[359944648,1746443208242,-450.0,0.00019999,2]
[359944649,1746443208257,-24.48532148,0.00019999,2]
[359944650,1746443208268,-425.51467852,0.00019999,2]
[359944651,1746443208281,-24.48532148,0.00019999,2]
[359944652,1746443208291,-443.06917496,0.00019999,2]
[359944653,1746443208303,-328.29082504,0.00019999,2]
[359944654,1746443208313,-121.70917496,0.00019999,2]
[359944655,1746443208328,-450.0,0.00019999,2]
[359944656,1746443208340,-450.0,0.00019999,2]
[359944657,1746443208352,-450.0,0.00019999,2]
[359944658,1746443208365,-450.0,0.00019999,2]
[359944659,1746443208381,-450.0,0.00019999,2]
[359944660,1746443208397,-450.0,0.00019999,2]
[359944661,1746443208410,-450.0,0.00019999,2]
[359944662,1746443208423,-889.21,0.00019999,2]
[359944663,1746443208440,-450.0,0.00019999,2]
[359944664,1746443208451,-324.57324155,0.00019999,2]
[359944665,1746443208463,-500.0,0.00019999,2]
[359944666,1746443208484,-450.0,0.00019996,2]
[359944667,1746443208495,-450.0,0.00019999,2]
[359944668,1746443208505,-450.0,0.00019999,2]
[359944669,1746443208516,-450.0,0.00019999,2]
[359944670,1746443208531,-450.0,0.00019999,2]
[359944671,1746443208542,-29.70758349,0.00019999,2]
[359944672,1746443208551,-420.29241651,0.00019999,2]
[359944673,1746443208563,-29.70758349,0.00019999,2]
[359944674,1746443208572,-356.04241651,0.00019999,2]
[359944675,1746443208587,-415.31758349,0.00019999,2]
[359944676,1746443208597,-34.68241651,0.00019999,2]
[359944677,1746443208607,-500.0,0.00019999,2]
[359944678,1746443208623,-450.0,0.00019999,2]
[359944679,1746443208638,-459.64652279,0.00019999,2]
[359944680,1746443208648,-450.0,0.00019999,2]
[359944681,1746443208659,-1000.0,0.00019999,2]
[359944682,1746443208670,-450.0,0.00019999,2]
[359944683,1746443208681,-456.8,0.00019999,2]
[359944684,1746443208691,-450.0,0.00019999,2]
[359944685,1746443208702,-450.0,0.00019999,2]
[359944686,1746443208714,-454.09516717,0.00019999,2]
[359944687,1746443208725,-451.55029221,0.00019999,2]
[359944688,1746443208735,-889.21,0.00019999,2]
[359944689,1746443208746,-450.0,0.00019999,2]
[359944690,1746443208758,-319.21560132,0.00019999,2]
[359944691,1746443208767,-130.78439868,0.00019999,2]
[359944692,1746443208778,-319.21560132,0.00019999,2]
[359944693,1746443208788,-214.77439868,0.00019999,2]
[359944694,1746443208800,-450.0,0.00019999,2]
[359944695,1746443208813,-106.58560132,0.00019999,2]
[359944696,1746443208823,-343.41439868,0.00019999,2]
[359944697,1746443208834,-450.0,0.00019999,2]
[359944698,1746443208845,-463.0,0.00019999,2]
[359944699,1746443208858,-492.13,0.00019999,2]
[359944700,1746443208869,-450.0,0.00019999,2]
[359944701,1746443208880,-450.0,0.00019999,2]
[359944702,1746443208892,-450.0,0.00019999,2]
[359944703,1746443208904,-450.0,0.00019999,2]
[359944704,1746443208914,-450.0,0.00019999,2]
[359944705,1746443208927,-450.0,0.00019999,2]
[359944706,1746443208938,-450.0,0.00019999,2]
[359944707,1746443208948,-450.0,0.00019999,2]
[359944708,1746443208960,-450.0,0.00019999,2]
[359944709,1746443208971,-450.0,0.00019999,2]
[359944710,1746443208987,-450.0,0.00019999,2]
[359944711,1746443208997,-450.0,0.00019999,2]
[359944712,1746443209008,-116.65560132,0.00019999,2]
[359944713,1746443209018,-316.35,0.00019999,2]
[359944714,1746443209028,-16.99439868,0.00019999,2]
[359944715,1746443209039,-450.0,0.00019999,2]
[359944716,1746443209051,-304.36560132,0.00019999,2]
[359944717,1746443209060,-145.63439868,0.00019999,2]
[359944718,1746443209072,-450.0,0.00019999,2]
[359944719,1746443209083,-450.0,0.00019999,2]
[359944720,1746443209094,-450.0,0.00019999,2]
[359944721,1746443209106,-157.41068815,0.00019999,2]
[359944722,1746443209117,-450.0,0.00019999,2]
[359944723,1746443209134,-450.0,0.00019996,2]
[359944724,1746443209145,-450.0,0.00019999,2]
[359944725,1746443209156,-450.0,0.00019999,2]
[359944726,1746443209169,-450.0,0.00019999,2]
[359944727,1746443209180,-474.97665069,0.00019999,2]
[359944728,1746443209192,-450.0,0.00019999,2]
[359944729,1746443209202,-450.0,0.00019999,2]
[359944730,1746443209213,-1954.510572,0.00019999,2]
[359944731,1746443209223,-450.0,0.00019999,2]
[359944732,1746443209234,-32.68769048,0.00019999,2]
[359944733,1746443209244,-417.31230952,0.00019999,2]
[359944734,1746443209263,-450.0,0.00019996,2]
[359944735,1746443209273,-20.50256753,0.00019999,2]
[359944736,1746443209284,-333.62512295,0.00019999,2]
[359944737,1746443209295,-437.73487705,0.00019999,2]
[359944738,1746443209306,-12.26512295,0.00019999,2]
[359944739,1746443209315,-328.34,0.00019999,2]
[359944740,1746443209324,-109.39487705,0.00019999,2]
[359944741,1746443209336,-405.79512295,0.00019999,2]
[359944742,1746443209345,-44.20487705,0.00019999,2]
[359944743,1746443209356,-470.98512295,0.00019999,2]
[359944744,1746443209365,-1.75638918,0.00019999,2]
[359944745,1746443209377,-450.0,0.00019999,2]
[359944746,1746443209388,-63.43361082,0.00019999,2]
[359944747,1746443209397,-386.56638918,0.00019999,2]
[359944748,1746443209408,-128.62361082,0.00019999,2]
[359944749,1746443209417,-515.19,0.00019999,2]
[359944750,1746443209428,-515.19,0.00019999,2]
[359944751,1746443209438,-515.19,0.00019999,2]
[359944752,1746443209447,-515.19,0.00019999,2]
[359944753,1746443209456,-515.19,0.00019999,2]
[359944754,1746443209466,-450.0,0.00019999,2]
[359944755,1746443209475,-515.19,0.00019999,2]
[359944756,1746443209484,-450.0,0.00019999,2]
[359944757,1746443209494,-515.19,0.00019999,2]
[359944758,1746443209503,-450.0,0.00019999,2]
[359944759,1746443209512,-515.19,0.00019999,2]
[359944760,1746443209521,-527.37,0.00019999,2]
[359944761,1746443209532,-515.19,0.00019999,2]
[359944762,1746443209541,-515.19,0.00019999,2]
[359944763,1746443209550,-515.19,0.00019999,2]
[359944764,1746443209560,-450.0,0.00019999,2]
[359944765,1746443209569,-515.19,0.00019999,2]
[359944766,1746443209579,-515.19,0.00019999,2]
[359944767,1746443209588,-515.19,0.00019999,2]
[359944768,1746443209597,-515.19,0.00019999,2]
[359944769,1746443209606,-515.19,0.00019999,2]
[359944770,1746443209616,-515.19,0.00019999,2]
[359944771,1746443209625,-515.19,0.00019999,2]
[359944772,1746443209634,-515.21,0.00019999,2]
[359944773,1746443209643,-450.0,0.00019999,2]
[359944774,1746443209775,-300.13851652,0.00019999,2]
[359944775,1746443209785,-3761.91,0.00019999,2]
[359944776,1746443209794,-3761.91,0.00019999,2]
[359944777,1746443209803,-3761.91,0.00019999,2]
[359944778,1746443209813,-3761.91,0.00019999,2]
[359944779,1746443209822,-3761.91,0.00019999,2]
[359944780,1746443209831,-3761.91,0.00019999,2]
[359944781,1746443209841,-3761.91,0.00019999,2]
[359944782,1746443209850,-3761.91,0.00019999,2]
[359944783,1746443209860,-3217.21048966,0.00019999,2]
[359944784,1746443209872,-450.0,0.00019999,2]
[359944785,1746443209889,-94.69951034,0.00019999,2]
[359944786,1746443209899,-355.30048966,0.00019999,2]
[359944787,1746443209910,-450.0,0.00019999,2]
[359944788,1746443209922,-489.62464043,0.00019999,2]
[359944789,1746443209937,-374.146941,0.00019999,2]
[359944790,1746443209949,-465.67882228,0.00019999,2]
[359944791,1746443209960,-450.0,0.00019999,2]
[359944792,1746443209971,-450.0,0.00019999,2]
[359944793,1746443209982,-450.0,0.00019999,2]
[359944794,1746443209994,-277.15910663,0.00019999,2]
[359944795,1746443210003,-172.84089337,0.00019999,2]
[359944796,1746443210014,-450.0,0.00019999,2]
[359944797,1746443210026,-3139.06910663,0.00019999,2]
[359944798,1746443210036,-2886.27232895,0.00019999,2]
[359944799,1746443210047,-875.63767105,0.00019999,2]
[359944800,1746443210057,-124.36232895,0.00019999,2]
[359944801,1746443210069,-150.0,0.00019999,2]
[359944802,1746443210081,-222.40857925,0.00019999,2]
[359944803,1746443210099,-150.0,0.00019999,2]
[359944804,1746443210110,-450.0,0.00019999,2]
[359944805,1746443210122,-450.0,0.00019999,2]
[359944806,1746443210134,-450.0,0.00019999,2]
[359944807,1746443210146,-450.0,0.00019999,2]
[359944808,1746443210158,-500.0,0.00019999,2]
[359944809,1746443210170,-450.0,0.00019999,2]
[359944810,1746443210183,-365.1390918,0.00019999,2]
[359944811,1746443210194,-84.8609082,0.00019999,2]
[359944812,1746443210227,-3677.0490918,0.00019999,2]
[359944813,1746443210260,-450.0,0.00019999,2]
[359944814,1746443210288,-450.0,0.00019999,2]
[359944815,1746443210316,-3761.91,0.00019999,2]
[359944816,1746443210344,-450.0,0.00019999,2]
[359944817,1746443210373,-3761.91,0.00019999,2]
[359944818,1746443210399,-176.04,0.00019999,2]
[359944819,1746443210429,-3761.91,0.00019999,2]
[359944820,1746443210459,-3761.91,0.00019999,2]
[359944821,1746443210486,-3761.91,0.00019999,2]
[359944822,1746443210515,-3761.91,0.00019999,2]
[359944823,1746443210543,-3761.91,0.00019999,2]
[359944824,1746443210573,-3761.91,0.00019999,2]
[359944825,1746443210603,-3762.07,0.00019999,2]
[359944826,1746443210632,-452.10817663,0.00019999,2]
[359944827,1746443210658,-205.57904787,0.00019999,2]
[359944828,1746443210685,-452.78573797,0.00019999,2]
[359944829,1746443210713,-450.0,0.00019999,2]
[359944830,1746443210741,-549.56,0.00019999,2]
[359944831,1746443210768,-451.63601563,0.00019999,2]